[Event "Live Chess"]
[Site "Chess.com"]
[Date "2023.05.20"]
[Round "-"]
[White "OceanFloater"]
[Black "LL220284LL"]
[Result "0-1"]
[WhiteElo "1018"]
[BlackElo "2391"]
[TimeControl "300"]
[EndTime "14:01:05 PDT"]
[Termination "LL220284LL won by checkmate"]

1. e4 {[%clk 0:04:48.5]} 1... g6 {[%clk 0:04:56.9]} 2. Nf3 {[%clk 0:04:48.1]}
2... Bg7 {[%clk 0:04:55.4]} 3. d4 {[%clk 0:04:46.9]} 3... d6 {[%clk 0:04:54.8]}
4. Nc3 {[%clk 0:04:45.9]} 4... Nc6 {[%clk 0:04:53.2]} 5. d5 {[%clk 0:04:44.3]}
5... Ne5 {[%clk 0:04:52.2]} 6. Nxe5 {[%clk 0:04:42.6]} 6... Bxe5 {[%clk
0:04:52.1]} 7. Bd2 {[%clk 0:04:41.2]} 7... f5 {[%clk 0:04:50.9]} 8. exf5 {[%clk
0:04:38.6]} 8... Bxf5 {[%clk 0:04:49.6]} 9. Bd3 {[%clk 0:04:35.8]} 9... Qd7
{[%clk 0:04:47.8]} 10. Bxf5 {[%clk 0:04:34.1]} 10... Qxf5 {[%clk 0:04:47.7]} 11.
O-O {[%clk 0:04:33.3]} 11... Nf6 {[%clk 0:04:46.1]} 12. Ne2 {[%clk 0:04:20.9]}
12... O-O {[%clk 0:04:43.9]} 13. Ng3 {[%clk 0:04:19.3]} 13... Qd7 {[%clk
0:04:40.3]} 14. Bg5 {[%clk 0:04:16.9]} 14... Rf7 {[%clk 0:04:37.7]} 15. Re1
{[%clk 0:04:09.1]} 15... Bxb2 {[%clk 0:04:36.3]} 16. Rb1 {[%clk 0:04:07.6]}
16... Ba3 {[%clk 0:04:32.5]} 17. Qd3 {[%clk 0:04:06]} 17... Bc5 {[%clk
0:04:31.3]} 18. Rxb7 {[%clk 0:04:02.1]} 18... Bb6 {[%clk 0:04:30.5]} 19. Ne4
{[%clk 0:03:50.6]} 19... Nxe4 {[%clk 0:04:28.8]} 20. Qxe4 {[%clk 0:03:49.7]}
20... Bxf2+ {[%clk 0:04:27.8]} 21. Kh1 {[%clk 0:03:47.6]} 21... Bxe1 {[%clk
0:04:27.7]} 22. Qxe1 {[%clk 0:03:45.7]} 22... Raf8 {[%clk 0:04:27]} 23. h3
{[%clk 0:03:39.2]} 23... Rf1+ {[%clk 0:04:25.5]} 24. Qxf1 {[%clk 0:03:38.5]}
24... Rxf1+ {[%clk 0:04:25.3]} 25. Kh2 {[%clk 0:03:37.5]} 25... Qf5 {[%clk
0:04:24.9]} 26. Bxe7 {[%clk 0:03:34.6]} 26... Qe5+ {[%clk 0:04:24]} 27. g3
{[%clk 0:03:32.1]} 27... Qe2# {[%clk 0:04:23.9]} 0-1

[Event "Live Chess"]
[Site "Chess.com"]
[Date "2023.05.20"]
[Round "-"]
[White "friarnator"]
[Black "JoeRoot66"]
[Result "1-0"]
[WhiteElo "1998"]
[BlackElo "1902"]
[TimeControl "300"]
[EndTime "14:01:10 PDT"]
[Termination "friarnator won by resignation"]

1. d4 {[%clk 0:04:53.5]} 1... d5 {[%clk 0:04:59]} 2. Nc3 {[%clk 0:04:52.3]} 2...
Nf6 {[%clk 0:04:57.9]} 3. Bf4 {[%clk 0:04:51.5]} 3... c5 {[%clk 0:04:57.2]} 4.
e3 {[%clk 0:04:50.2]} 4... cxd4 {[%clk 0:04:55.3]} 5. exd4 {[%clk 0:04:49]} 5...
a6 {[%clk 0:04:55]} 6. Nf3 {[%clk 0:04:47.6]} 6... Bg4 {[%clk 0:04:54.6]} 7. Be2
{[%clk 0:04:46.8]} 7... Bxf3 {[%clk 0:04:53.3]} 8. Bxf3 {[%clk 0:04:46.7]} 8...
Nc6 {[%clk 0:04:52.1]} 9. O-O {[%clk 0:04:43.1]} 9... e6 {[%clk 0:04:51.1]} 10.
Ne2 {[%clk 0:04:42.1]} 10... Bd6 {[%clk 0:04:49.6]} 11. c3 {[%clk 0:04:41.4]}
11... O-O {[%clk 0:04:48]} 12. Qd2 {[%clk 0:04:28]} 12... Qc7 {[%clk 0:04:44.7]}
13. Rfe1 {[%clk 0:04:24.8]} 13... Rfe8 {[%clk 0:04:43.3]} 14. Bg5 {[%clk
0:04:18]} 14... Be7 {[%clk 0:04:09.6]} 15. Ng3 {[%clk 0:04:10.8]} 15... Rad8
{[%clk 0:04:01.1]} 16. Re2 {[%clk 0:04:05.1]} 16... h6 {[%clk 0:03:58.2]} 17.
Bxf6 {[%clk 0:04:03.4]} 17... Bxf6 {[%clk 0:03:56.3]} 18. Nh5 {[%clk 0:04:02.7]}
18... Bg5 {[%clk 0:03:52.5]} 19. Qd3 {[%clk 0:03:55]} 19... e5 {[%clk
0:03:47.9]} 20. dxe5 {[%clk 0:03:53]} 20... Nxe5 {[%clk 0:03:46.7]} 21. Qf5
{[%clk 0:03:42.1]} 21... g6 {[%clk 0:03:34.9]} 22. Nf6+ {[%clk 0:03:39.9]} 22...
Kg7 {[%clk 0:03:17]} 23. Nxe8+ {[%clk 0:03:38.4]} 23... Rxe8 {[%clk 0:03:15.8]}
1-0

[Event "Live Chess"]
[Site "Chess.com"]
[Date "2023.05.20"]
[Round "-"]
[White "kenn48"]
[Black "WilliamofOrange16th"]
[Result "0-1"]
[WhiteElo "1148"]
[BlackElo "1833"]
[TimeControl "300"]
[EndTime "14:01:12 PDT"]
[Termination "WilliamofOrange16th won by checkmate"]

1. e4 {[%clk 0:04:57.4]} 1... d6 {[%clk 0:04:59.2]} 2. d4 {[%clk 0:04:55.1]}
2... Nf6 {[%clk 0:04:58.3]} 3. Nc3 {[%clk 0:04:53]} 3... Nbd7 {[%clk 0:04:57.8]}
4. Bd3 {[%clk 0:04:49.5]} 4... e5 {[%clk 0:04:57.7]} 5. dxe5 {[%clk 0:04:46.6]}
5... dxe5 {[%clk 0:04:57.6]} 6. Nf3 {[%clk 0:04:45.1]} 6... c6 {[%clk
0:04:55.8]} 7. Bg5 {[%clk 0:04:42.9]} 7... Be7 {[%clk 0:04:54.6]} 8. O-O {[%clk
0:04:39.9]} 8... Qc7 {[%clk 0:04:53.8]} 9. Qe2 {[%clk 0:04:33.2]} 9... O-O
{[%clk 0:04:52.8]} 10. Rad1 {[%clk 0:04:27.7]} 10... Nc5 {[%clk 0:04:52]} 11.
Bc4 {[%clk 0:04:20.5]} 11... b5 {[%clk 0:04:50.9]} 12. Bb3 {[%clk 0:04:17.9]}
12... a5 {[%clk 0:04:48.9]} 13. a3 {[%clk 0:04:15.3]} 13... Nxb3 {[%clk
0:04:48.1]} 14. cxb3 {[%clk 0:04:13.7]} 14... Be6 {[%clk 0:04:48]} 15. b4 {[%clk
0:04:10.8]} 15... axb4 {[%clk 0:04:46.2]} 16. axb4 {[%clk 0:04:09]} 16... h6
{[%clk 0:04:45]} 17. Rd2 {[%clk 0:03:48.3]} 17... hxg5 {[%clk 0:04:42.4]} 18.
Nxg5 {[%clk 0:03:44.3]} 18... Bc4 {[%clk 0:04:39]} 19. Qf3 {[%clk 0:03:36.7]}
19... Bxf1 {[%clk 0:04:30.6]} 20. Kxf1 {[%clk 0:03:34.2]} 20... Ra1+ {[%clk
0:04:30.1]} 21. Ke2 {[%clk 0:03:31.8]} 21... Bxb4 {[%clk 0:04:24.3]} 22. Qh3
{[%clk 0:03:21.8]} 22... Bxc3 {[%clk 0:04:21.9]} 23. bxc3 {[%clk 0:03:19.3]}
23... Rd8 {[%clk 0:04:16.9]} 24. Rb2 {[%clk 0:03:12.6]} 24... Qd6 {[%clk
0:04:10.3]} 25. Qe3 {[%clk 0:02:59.7]} 25... Qd1# {[%clk 0:04:08.2]} 0-1

[Event "Live Chess"]
[Site "Chess.com"]
[Date "2023.05.20"]
[Round "-"]
[White "Stanbad1"]
[Black "JanMur7"]
[Result "1-0"]
[WhiteElo "2409"]
[BlackElo "1995"]
[TimeControl "300"]
[EndTime "14:01:21 PDT"]
[Termination "Stanbad1 won by checkmate"]

1. d4 {[%clk 0:04:58.1]} 1... Nf6 {[%clk 0:04:58.6]} 2. Bg5 {[%clk 0:04:56.9]}
2... c5 {[%clk 0:04:54.5]} 3. Bxf6 {[%clk 0:04:55.2]} 3... gxf6 {[%clk
0:04:44.8]} 4. d5 {[%clk 0:04:53.4]} 4... d6 {[%clk 0:04:42.2]} 5. c4 {[%clk
0:04:52.5]} 5... f5 {[%clk 0:04:39.9]} 6. Nc3 {[%clk 0:04:51.4]} 6... Bg7 {[%clk
0:04:38.9]} 7. g3 {[%clk 0:04:50.9]} 7... Nd7 {[%clk 0:04:38.1]} 8. e3 {[%clk
0:04:50]} 8... Ne5 {[%clk 0:04:37.6]} 9. Rc1 {[%clk 0:04:42.5]} 9... a6 {[%clk
0:04:29.8]} 10. b3 {[%clk 0:04:40.5]} 10... Bd7 {[%clk 0:04:28.1]} 11. f4 {[%clk
0:04:37.5]} 11... Ng4 {[%clk 0:04:26.3]} 12. Qf3 {[%clk 0:04:36.1]} 12... Qa5
{[%clk 0:04:20.1]} 13. Ne2 {[%clk 0:04:33.8]} 13... b5 {[%clk 0:04:17.1]} 14. h3
{[%clk 0:04:31.3]} 14... Nf6 {[%clk 0:04:15.1]} 15. Kf2 {[%clk 0:04:30.3]} 15...
b4 {[%clk 0:04:11.3]} 16. Na4 {[%clk 0:04:26.6]} 16... Bxa4 {[%clk 0:04:08.9]}
17. bxa4 {[%clk 0:04:26.5]} 17... Ne4+ {[%clk 0:04:08.1]} 18. Kg2 {[%clk
0:04:25.2]} 18... Qxa4 {[%clk 0:04:06.9]} 19. Qh5 {[%clk 0:04:23.2]} 19... Qxa2
{[%clk 0:03:48.8]} 20. Qxf5 {[%clk 0:04:20.5]} 20... Nc3 {[%clk 0:03:47.5]} 21.
Kf3 {[%clk 0:04:19.2]} 21... Nxe2 {[%clk 0:03:40.2]} 22. Bxe2 {[%clk 0:04:19.1]}
22... b3 {[%clk 0:03:35]} 23. Bd3 {[%clk 0:04:16.5]} 23... Qd2 {[%clk 0:03:09]}
24. Rb1 {[%clk 0:04:11.3]} 24... b2 {[%clk 0:03:06.2]} 25. Bc2 {[%clk
0:04:10.4]} 25... a5 {[%clk 0:02:55.7]} 26. Ba4+ {[%clk 0:04:07.5]} 26... Kf8
{[%clk 0:02:54.8]} 27. Bd7 {[%clk 0:04:05.2]} 27... Kg8 {[%clk 0:02:44.1]} 28.
g4 {[%clk 0:04:01.1]} 28... a4 {[%clk 0:02:37.8]} 29. h4 {[%clk 0:03:57.4]}
29... a3 {[%clk 0:02:35.5]} 30. h5 {[%clk 0:03:56.4]} 30... a2 {[%clk
0:02:31.5]} 31. h6 {[%clk 0:03:51.3]} 31... axb1=Q {[%clk 0:02:24]} 32. Rxb1
{[%clk 0:03:48.1]} 32... Qc3 {[%clk 0:01:52.6]} 33. hxg7 {[%clk 0:03:44.5]}
33... Qxg7 {[%clk 0:01:52.5]} 34. Qc2 {[%clk 0:03:36.2]} 34... h5 {[%clk
0:01:44.3]} 35. g5 {[%clk 0:03:33.8]} 35... h4 {[%clk 0:01:33.9]} 36. Rxb2
{[%clk 0:03:31.9]} 36... h3 {[%clk 0:01:28.1]} 37. Rb1 {[%clk 0:03:24.1]} 37...
h2 {[%clk 0:01:23.6]} 38. Rh1 {[%clk 0:03:21.2]} 38... Ra1 {[%clk 0:00:58.5]}
39. Rxh2 {[%clk 0:03:17.5]} 39... Rf1+ {[%clk 0:00:47.7]} 40. Kg4 {[%clk
0:03:14.3]} 40... Rxh2 {[%clk 0:00:36.6]} 41. Qxh2 {[%clk 0:03:11.4]} 41... Qh7
{[%clk 0:00:34.7]} 42. Qxh7+ {[%clk 0:03:07.7]} 42... Kxh7 {[%clk 0:00:34.6]}
43. Bf5+ {[%clk 0:03:05.5]} 43... Kg7 {[%clk 0:00:33.3]} 44. Bd3 {[%clk
0:03:02.2]} 44... Rd1 {[%clk 0:00:30.2]} 45. Be2 {[%clk 0:03:01.1]} 45... Rd2
{[%clk 0:00:23.4]} 46. Kf3 {[%clk 0:02:59.7]} 46... Rc2 {[%clk 0:00:22.1]} 47.
e4 {[%clk 0:02:58.6]} 47... Rc3+ {[%clk 0:00:21]} 48. Kg4 {[%clk 0:02:57.3]}
48... Rc1 {[%clk 0:00:20.4]} 49. Kf3 {[%clk 0:02:51.6]} 49... Rg1 {[%clk
0:00:20.3]} 50. Ke3 {[%clk 0:02:49.6]} 50... Ra1 {[%clk 0:00:20.2]} 51. e5
{[%clk 0:02:48]} 51... Ra3+ {[%clk 0:00:20.1]} 52. Bd3 {[%clk 0:02:46.4]} 52...
f6 {[%clk 0:00:17.3]} 53. gxf6+ {[%clk 0:02:44.5]} 53... exf6 {[%clk 0:00:16.7]}
54. exd6 {[%clk 0:02:44]} 54... Kf7 {[%clk 0:00:16.1]} 55. Kd2 {[%clk
0:02:40.5]} 55... Ra6 {[%clk 0:00:14.6]} 56. d7 {[%clk 0:02:38.5]} 56... Ke7
{[%clk 0:00:14.1]} 57. Bf5 {[%clk 0:02:36.3]} 57... Ra3 {[%clk 0:00:13.2]} 58.
Ke2 {[%clk 0:02:33.4]} 58... Rc3 {[%clk 0:00:12]} 59. d6+ {[%clk 0:02:32.2]}
59... Kd8 {[%clk 0:00:11]} 60. Be6 {[%clk 0:02:31.5]} 60... Rh3 {[%clk
0:00:07.7]} 61. Bxh3 {[%clk 0:02:29.6]} 61... f5 {[%clk 0:00:06.9]} 62. Ke3
{[%clk 0:02:25.8]} 62... Kxd7 {[%clk 0:00:04.9]} 63. Bxf5+ {[%clk 0:02:25.4]}
63... Kxd6 {[%clk 0:00:04.8]} 64. Ke4 {[%clk 0:02:25.1]} 64... Kc7 {[%clk
0:00:04.1]} 65. Kd5 {[%clk 0:02:25]} 65... Kb6 {[%clk 0:00:03.5]} 66. Kd6 {[%clk
0:02:24.1]} 66... Ka5 {[%clk 0:00:03.4]} 67. Kxc5 {[%clk 0:02:24]} 67... Ka4
{[%clk 0:00:03.3]} 68. Kb6 {[%clk 0:02:23]} 68... Kb3 {[%clk 0:00:03.2]} 69. c5
{[%clk 0:02:22.9]} 69... Ka3 {[%clk 0:00:03.1]} 70. c6 {[%clk 0:02:22.8]} 70...
Kb2 {[%clk 0:00:03]} 71. c7 {[%clk 0:02:22.7]} 71... Kc1 {[%clk 0:00:01.8]} 72.
c8=Q+ {[%clk 0:02:22.6]} 72... Kd2 {[%clk 0:00:01.7]} 73. Qc2+ {[%clk
0:02:20.8]} 73... Ke1 {[%clk 0:00:01.6]} 74. Bg4 {[%clk 0:02:17.5]} 74... Kf1
{[%clk 0:00:00.3]} 75. Bf3 {[%clk 0:02:17.1]} 75... Kg1 {[%clk 0:00:00.2]} 76.
Qg2# {[%clk 0:02:16.1]} 1-0

[Event "Live Chess"]
[Site "Chess.com"]
[Date "2023.05.20"]
[Round "-"]
[White "f4nomore"]
[Black "AttackingSnowLeopard"]
[Result "0-1"]
[WhiteElo "1378"]
[BlackElo "2070"]
[TimeControl "300"]
[EndTime "14:01:36 PDT"]
[Termination "AttackingSnowLeopard won by checkmate"]

1. b3 {[%clk 0:04:58.8]} 1... d5 {[%clk 0:04:58.6]} 2. Bb2 {[%clk 0:04:56.3]}
2... Nf6 {[%clk 0:04:52]} 3. e3 {[%clk 0:04:55.4]} 3... c5 {[%clk 0:04:50.2]} 4.
f4 {[%clk 0:04:54.2]} 4... Nc6 {[%clk 0:04:49.5]} 5. Nf3 {[%clk 0:04:53.1]} 5...
Bg4 {[%clk 0:04:48.5]} 6. Be2 {[%clk 0:04:52.1]} 6... e6 {[%clk 0:04:47.4]} 7.
O-O {[%clk 0:04:50.9]} 7... Be7 {[%clk 0:04:46.5]} 8. Ne5 {[%clk 0:04:49.5]}
8... Bxe2 {[%clk 0:04:44.6]} 9. Qxe2 {[%clk 0:04:47]} 9... Qc7 {[%clk
0:04:40.9]} 10. Nxc6 {[%clk 0:04:42.5]} 10... Qxc6 {[%clk 0:04:40]} 11. Nc3
{[%clk 0:04:41.7]} 11... O-O {[%clk 0:04:37.9]} 12. Nd1 {[%clk 0:04:33.5]} 12...
Rad8 {[%clk 0:04:33.6]} 13. Nf2 {[%clk 0:04:32.1]} 13... d4 {[%clk 0:04:32.7]}
14. exd4 {[%clk 0:04:27.7]} 14... cxd4 {[%clk 0:04:31.5]} 15. d3 {[%clk
0:04:26.3]} 15... Nd5 {[%clk 0:04:26.3]} 16. Rac1 {[%clk 0:04:16.4]} 16... Nxf4
{[%clk 0:04:22.1]} 17. Qe5 {[%clk 0:04:07.3]} 17... Bd6 {[%clk 0:04:18.2]} 18.
Qxd4 {[%clk 0:03:58.5]} 18... Qxg2# {[%clk 0:04:14.2]} 0-1

[Event "Live Chess"]
[Site "Chess.com"]
[Date "2023.05.20"]
[Round "-"]
[White "SupremeTactician"]
[Black "Tushinskiy"]
[Result "0-1"]
[WhiteElo "2359"]
[BlackElo "2142"]
[TimeControl "300"]
[EndTime "14:01:46 PDT"]
[Termination "Tushinskiy won by resignation"]

1. e4 {[%clk 0:04:59]} 1... e5 {[%clk 0:04:58.2]} 2. Nf3 {[%clk 0:04:58]} 2...
d6 {[%clk 0:04:57.5]} 3. d4 {[%clk 0:04:56.6]} 3... Bg4 {[%clk 0:04:56.5]} 4.
Be2 {[%clk 0:04:54.8]} 4... Nd7 {[%clk 0:04:49.7]} 5. dxe5 {[%clk 0:04:51.9]}
5... dxe5 {[%clk 0:04:49.6]} 6. h3 {[%clk 0:04:50.9]} 6... Bh5 {[%clk
0:04:48.6]} 7. Nc3 {[%clk 0:04:47.1]} 7... Ngf6 {[%clk 0:04:46.3]} 8. Be3 {[%clk
0:04:45.8]} 8... c6 {[%clk 0:04:44.9]} 9. O-O {[%clk 0:04:42.3]} 9... Qc7 {[%clk
0:04:44]} 10. Qd2 {[%clk 0:04:36.7]} 10... Bb4 {[%clk 0:04:38.7]} 11. Nb5 {[%clk
0:04:11.4]} 11... cxb5 {[%clk 0:04:34.4]} 12. Qxb4 {[%clk 0:04:09.3]} 12... a6
{[%clk 0:04:30.2]} 13. Rad1 {[%clk 0:04:02.9]} 13... Bxf3 {[%clk 0:04:25.1]} 14.
Bxf3 {[%clk 0:04:00.9]} 14... Rc8 {[%clk 0:04:12.7]} 15. c3 {[%clk 0:03:58.7]}
15... Qc4 {[%clk 0:04:10.3]} 16. Qxc4 {[%clk 0:03:54.4]} 16... bxc4 {[%clk
0:04:07]} 17. Rd2 {[%clk 0:03:51.4]} 17... Ke7 {[%clk 0:04:05.4]} 18. Rfd1
{[%clk 0:03:50.9]} 18... Rhd8 {[%clk 0:04:04.8]} 19. Bg5 {[%clk 0:03:50.2]}
19... Nc5 {[%clk 0:03:57.7]} 20. Rxd8 {[%clk 0:03:47.1]} 20... Rxd8 {[%clk
0:03:56.8]} 21. Rxd8 {[%clk 0:03:37.3]} 21... Kxd8 {[%clk 0:03:56.7]} 22. Bxf6+
{[%clk 0:03:35.8]} 22... gxf6 {[%clk 0:03:56.6]} 23. Kf1 {[%clk 0:03:33.4]}
23... b5 {[%clk 0:03:49.6]} 24. Ke2 {[%clk 0:03:31.3]} 24... Nd3 {[%clk
0:03:43.2]} 25. b3 {[%clk 0:03:30]} 25... cxb3 {[%clk 0:03:41.2]} 26. axb3
{[%clk 0:03:29.1]} 26... Nc1+ {[%clk 0:03:40.3]} 27. Kd2 {[%clk 0:03:25]} 27...
Nxb3+ {[%clk 0:03:40.2]} 28. Kc2 {[%clk 0:03:24.3]} 28... Nc5 {[%clk 0:03:38.6]}
29. Bg4 {[%clk 0:03:21.2]} 29... Ke7 {[%clk 0:03:35.8]} 30. Bf5 {[%clk
0:03:20.4]} 30... h6 {[%clk 0:03:34.7]} 31. g3 {[%clk 0:03:15.4]} 31... Kd6
{[%clk 0:03:33.2]} 32. f4 {[%clk 0:03:14.5]} 32... exf4 {[%clk 0:03:22.2]} 33.
gxf4 {[%clk 0:03:13.1]} 33... Ne6 {[%clk 0:03:21.8]} 34. Bxe6 {[%clk 0:02:59.1]}
34... fxe6 {[%clk 0:03:21.7]} 35. Kb3 {[%clk 0:02:39.6]} 35... Kc5 {[%clk
0:03:12.3]} 36. h4 {[%clk 0:02:36.8]} 36... e5 {[%clk 0:03:10.7]} 37. f5 {[%clk
0:02:34]} 37... h5 {[%clk 0:03:08.7]} 38. Ka3 {[%clk 0:02:31.5]} 38... Kc4
{[%clk 0:03:06.9]} 39. Kb2 {[%clk 0:02:30.5]} 39... Kd3 {[%clk 0:03:06.1]} 40.
c4 {[%clk 0:02:29.6]} 40... bxc4 {[%clk 0:03:04.6]} 0-1

[Event "Live Chess"]
[Site "Chess.com"]
[Date "2023.05.20"]
[Round "-"]
[White "BostonStrangler"]
[Black "VovaOvchar1990"]
[Result "1-0"]
[WhiteElo "2054"]
[BlackElo "1229"]
[TimeControl "300"]
[EndTime "14:01:56 PDT"]
[Termination "BostonStrangler won by resignation"]

1. Nf3 {[%clk 0:04:58.3]} 1... Nc6 {[%clk 0:04:58]} 2. d4 {[%clk 0:04:55.3]}
2... d5 {[%clk 0:04:56.7]} 3. c4 {[%clk 0:04:54.2]} 3... dxc4 {[%clk 0:04:55.4]}
4. e4 {[%clk 0:04:50.2]} 4... Bg4 {[%clk 0:04:53]} 5. d5 {[%clk 0:04:49.1]} 5...
Nb8 {[%clk 0:04:42.7]} 6. Bxc4 {[%clk 0:04:47.1]} 6... a6 {[%clk 0:04:35.7]} 7.
h3 {[%clk 0:04:40.6]} 7... Bh5 {[%clk 0:04:33.6]} 8. g4 {[%clk 0:04:37.9]} 8...
Bg6 {[%clk 0:04:32.1]} 9. Nc3 {[%clk 0:04:37.1]} 9... c6 {[%clk 0:04:29.6]} 10.
h4 {[%clk 0:04:30.3]} 10... cxd5 {[%clk 0:04:27.2]} 11. Bxd5 {[%clk 0:04:23.1]}
11... Nc6 {[%clk 0:04:23]} 12. h5 {[%clk 0:04:21.1]} 12... e6 {[%clk 0:04:09.9]}
13. Bxc6+ {[%clk 0:04:18.7]} 13... bxc6 {[%clk 0:04:06.9]} 14. Qxd8+ {[%clk
0:04:18.2]} 14... Rxd8 {[%clk 0:04:05.3]} 15. hxg6 {[%clk 0:04:17.9]} 15... fxg6
{[%clk 0:04:03.7]} 16. Ne5 {[%clk 0:04:15.5]} 16... Bd6 {[%clk 0:04:00.2]} 17.
Nxg6 {[%clk 0:04:12.9]} 17... hxg6 {[%clk 0:03:51.7]} 18. Rxh8 {[%clk
0:04:10.7]} 18... Kf7 {[%clk 0:03:48.6]} 19. Bg5 {[%clk 0:04:07.8]} 19... Rb8
{[%clk 0:03:46.6]} 20. O-O-O {[%clk 0:04:05.8]} 20... Rb4 {[%clk 0:03:38.7]} 21.
Rxd6 {[%clk 0:04:02.3]} 1-0

[Event "Live Chess"]
[Site "Chess.com"]
[Date "2023.05.20"]
[Round "-"]
[White "toog"]
[Black "diana21strabt"]
[Result "1-0"]
[WhiteElo "2615"]
[BlackElo "1702"]
[TimeControl "300"]
[EndTime "14:01:58 PDT"]
[Termination "toog won by checkmate"]

1. e4 {[%clk 0:04:58.5]} 1... d5 {[%clk 0:04:58.6]} 2. exd5 {[%clk 0:04:57.2]}
2... Qxd5 {[%clk 0:04:57.6]} 3. Nc3 {[%clk 0:04:56.5]} 3... Qa5 {[%clk
0:04:56.4]} 4. d4 {[%clk 0:04:54.1]} 4... Nf6 {[%clk 0:04:55.7]} 5. Bc4 {[%clk
0:04:51.9]} 5... Bg4 {[%clk 0:04:53.7]} 6. Nf3 {[%clk 0:04:38.9]} 6... Nc6
{[%clk 0:04:50.3]} 7. d5 {[%clk 0:04:24.4]} 7... O-O-O {[%clk 0:04:48.4]} 8. Bd2
{[%clk 0:04:18.8]} 8... Ne5 {[%clk 0:04:44.2]} 9. Be2 {[%clk 0:04:16.3]} 9...
Bxf3 {[%clk 0:04:40.5]} 10. Bxf3 {[%clk 0:04:16.2]} 10... Nxf3+ {[%clk
0:04:37.4]} 11. Qxf3 {[%clk 0:04:16.1]} 11... Nxd5 {[%clk 0:04:34.5]} 12. Qxf7
{[%clk 0:04:14.4]} 12... Nxc3 {[%clk 0:04:28.5]} 13. Bxc3 {[%clk 0:04:14.3]}
13... Qd5 {[%clk 0:04:24.4]} 14. Qxd5 {[%clk 0:04:10.7]} 14... Rxd5 {[%clk
0:04:23.3]} 15. O-O {[%clk 0:04:10.6]} 15... Rb5 {[%clk 0:04:20.6]} 16. Rfe1
{[%clk 0:04:07.5]} 16... Rc5 {[%clk 0:04:09.7]} 17. Rad1 {[%clk 0:04:04.4]}
17... Rg8 {[%clk 0:04:04.1]} 18. Re3 {[%clk 0:03:54.4]} 18... g6 {[%clk
0:03:58.5]} 19. Red3 {[%clk 0:03:52.5]} 19... Bh6 {[%clk 0:03:49]} 20. Rh3
{[%clk 0:03:50.4]} 20... Bg7 {[%clk 0:03:35.7]} 21. Bxg7 {[%clk 0:03:26.5]}
21... Rxg7 {[%clk 0:03:33.3]} 22. c3 {[%clk 0:03:26.4]} 22... h5 {[%clk
0:03:31.3]} 23. Rf3 {[%clk 0:03:23.2]} 23... Rg8 {[%clk 0:03:28.8]} 24. Rf7
{[%clk 0:03:18.9]} 24... Re5 {[%clk 0:03:21.1]} 25. Kf1 {[%clk 0:03:17.3]} 25...
b6 {[%clk 0:03:18.3]} 26. g3 {[%clk 0:03:15.1]} 26... Rd8 {[%clk 0:03:11.1]} 27.
Rxd8+ {[%clk 0:03:11.5]} 27... Kxd8 {[%clk 0:03:10.1]} 28. Rg7 {[%clk
0:03:11.4]} 28... Re6 {[%clk 0:03:04.9]} 29. h4 {[%clk 0:03:10]} 29... Ke8
{[%clk 0:03:03.4]} 30. Rg8+ {[%clk 0:03:06.9]} 30... Kd7 {[%clk 0:02:58.3]} 31.
Kg2 {[%clk 0:02:50]} 31... Re2 {[%clk 0:02:54]} 32. Rxg6 {[%clk 0:02:47.8]}
32... Rxb2 {[%clk 0:02:52.5]} 33. Rg5 {[%clk 0:02:19.1]} 33... Rxa2 {[%clk
0:02:50.2]} 34. Rxh5 {[%clk 0:02:18.7]} 34... Rc2 {[%clk 0:02:47.2]} 35. Rd5+
{[%clk 0:02:13.7]} 35... Ke6 {[%clk 0:02:44.1]} 36. Rd1 {[%clk 0:02:13.4]} 36...
Rxc3 {[%clk 0:02:42.3]} 37. h5 {[%clk 0:02:12.1]} 37... Kf6 {[%clk 0:02:40.5]}
38. Kh3 {[%clk 0:02:09.5]} 38... Rc5 {[%clk 0:02:34.7]} 39. Kg4 {[%clk
0:02:07.7]} 39... Rg5+ {[%clk 0:02:25]} 40. Kh4 {[%clk 0:02:06.6]} 40... Rf5
{[%clk 0:02:23.6]} 41. f4 {[%clk 0:02:04.7]} 41... Rc5 {[%clk 0:02:19.9]} 42. g4
{[%clk 0:02:02.9]} 42... a5 {[%clk 0:02:17]} 43. g5+ {[%clk 0:01:49.4]} 43...
Kf5 {[%clk 0:01:28.2]} 44. g6 {[%clk 0:01:47.7]} 44... Kf6 {[%clk 0:01:21.1]}
45. Kg4 {[%clk 0:01:40.2]} 45... a4 {[%clk 0:01:17]} 46. Rd8 {[%clk 0:01:31.4]}
46... a3 {[%clk 0:01:08.3]} 47. Rf8+ {[%clk 0:01:29.6]} 47... Kg7 {[%clk
0:01:07.2]} 48. Rf7+ {[%clk 0:01:28.5]} 48... Kh8 {[%clk 0:01:02.5]} 49. h6
{[%clk 0:01:26.4]} 49... Kg8 {[%clk 0:00:50.2]} 50. h7+ {[%clk 0:01:23.8]} 50...
Kh8 {[%clk 0:00:49.2]} 51. Rf8+ {[%clk 0:01:23.7]} 51... Kg7 {[%clk 0:00:48.2]}
52. h8=Q+ {[%clk 0:01:22]} 52... Kxg6 {[%clk 0:00:46.7]} 53. Qg8+ {[%clk
0:01:15.6]} 53... Kh6 {[%clk 0:00:44.4]} 54. Rf7 {[%clk 0:01:12.5]} 54... Rg5+
{[%clk 0:00:35.9]} 55. fxg5# {[%clk 0:01:10.4]} 1-0

[Event "Live Chess"]
[Site "Chess.com"]
[Date "2023.05.20"]
[Round "-"]
[White "Brooms1989"]
[Black "MarkLim1"]
[Result "0-1"]
[WhiteElo "1031"]
[BlackElo "1655"]
[TimeControl "300"]
[EndTime "14:02:01 PDT"]
[Termination "MarkLim1 won by resignation"]

1. e4 {[%clk 0:04:53.2]} 1... e6 {[%clk 0:04:59.1]} 2. d4 {[%clk 0:04:51.7]}
2... d5 {[%clk 0:04:58.4]} 3. Nc3 {[%clk 0:04:51.3]} 3... Nf6 {[%clk 0:04:57.5]}
4. e5 {[%clk 0:04:46.7]} 4... Nfd7 {[%clk 0:04:56.4]} 5. Nf3 {[%clk 0:04:43.2]}
5... c5 {[%clk 0:04:34]} 6. Be3 {[%clk 0:04:26.4]} 6... Nc6 {[%clk 0:04:31.9]}
7. Qd2 {[%clk 0:04:19.2]} 7... a6 {[%clk 0:04:30.9]} 8. O-O-O {[%clk 0:04:17.8]}
8... b5 {[%clk 0:04:29.9]} 9. dxc5 {[%clk 0:04:15.7]} 9... Bxc5 {[%clk 0:04:28]}
10. Bxc5 {[%clk 0:04:14.4]} 10... Nxc5 {[%clk 0:04:27.2]} 11. Bd3 {[%clk
0:04:01.1]} 11... b4 {[%clk 0:04:25.7]} 12. Ne2 {[%clk 0:03:58]} 12... a5 {[%clk
0:04:24.5]} 13. Bb5 {[%clk 0:03:51.4]} 13... Qb6 {[%clk 0:04:22.6]} 14. Ned4
{[%clk 0:03:43.7]} 14... Bd7 {[%clk 0:04:20.7]} 15. Nxc6 {[%clk 0:03:36.1]}
15... Bxc6 {[%clk 0:04:18.7]} 16. Bxc6+ {[%clk 0:03:35.2]} 16... Qxc6 {[%clk
0:04:17.7]} 17. Qg5 {[%clk 0:03:32.9]} 17... O-O {[%clk 0:04:14.9]} 18. h4
{[%clk 0:03:12]} 18... b3 {[%clk 0:04:06.5]} 19. axb3 {[%clk 0:02:58]} 19...
Nxb3+ {[%clk 0:04:05.2]} 20. Kb1 {[%clk 0:02:54.5]} 20... Nc5 {[%clk 0:04:04.1]}
21. h5 {[%clk 0:02:50.3]} 21... h6 {[%clk 0:04:02.9]} 22. Qe3 {[%clk 0:02:44.1]}
22... Rfb8 {[%clk 0:04:01.2]} 23. Rd4 {[%clk 0:02:34.7]} 23... Na4 {[%clk
0:03:58]} 24. Rxa4 {[%clk 0:02:28.1]} 24... Qxa4 {[%clk 0:03:56.7]} 25. Rh4
{[%clk 0:02:25.3]} 25... Qb5 {[%clk 0:03:53.8]} 26. Qc3 {[%clk 0:02:18.2]} 26...
a4 {[%clk 0:03:50.5]} 27. Nd4 {[%clk 0:02:12.3]} 27... Qf1+ {[%clk 0:03:47.6]}
28. Ka2 {[%clk 0:02:07.3]} 28... Qxf2 {[%clk 0:03:45.2]} 29. Rg4 {[%clk
0:01:57.9]} 29... a3 {[%clk 0:03:42.8]} 30. b3 {[%clk 0:01:55.1]} 30... Qf1
{[%clk 0:03:34.8]} 31. Qe3 {[%clk 0:01:44]} 31... Qd1 {[%clk 0:03:13.6]} 32.
Qxh6 {[%clk 0:01:37.6]} 32... Qxg4 {[%clk 0:03:12.1]} 33. Qd2 {[%clk 0:01:30.7]}
0-1